[Event "World Junior Chess Championship U20 2022"]
[White "Javornik, Nik"]
[Black "Martins, Bruno Andre Leite"]
[WhiteFideId "14636549"]
[BlackFideId "1942255"]
[WhiteElo "2064"]
[BlackElo "2306"]
[Result "0-1"]
[Round "02"]
[TimeControl "5400+30"]
[Date "2022.10.13"]
[WhiteClock "0:41:55"]
[BlackClock "0:04:48"]

1. Nf3 {[%clk 1:30:36]}  c5 {[%clk 1:30:25]} 2. g3 {[%clk 1:31:01]}  g6 {[%clk 1:28:12]} 3. Bg2 {[%clk 1:31:25]}  Bg7 {[%clk 1:28:16]} 4. O-O {[%clk 1:31:41]}  d5 {[%clk 1:28:25]} 5. d3 {[%clk 1:32:06]}  Nf6 {[%clk 1:28:39]} 6. Nbd2 {[%clk 1:32:25]}  O-O {[%clk 1:28:36]} 7. c3 {[%clk 1:32:50]}  Nc6 {[%clk 1:28:55]} 8. e4 {[%clk 1:33:06]}  e5 {[%clk 1:26:21]} 9. Re1 {[%clk 1:33:13]}  Re8 {[%clk 1:26:14]} 10. exd5 {[%clk 1:33:37]}  Nxd5 {[%clk 1:26:38]} 11. Qb3 {[%clk 1:34:02]}  Nc7 {[%clk 1:20:02]} 12. Nc4 {[%clk 1:22:58]}  h6 {[%clk 1:15:10]} 13. Be3 {[%clk 1:18:13]}  Bf8 {[%clk 1:00:39]} 14. Rad1 {[%clk 0:59:14]}  b5 {[%clk 0:57:15]} 15. Ncxe5 {[%clk 0:52:38]}  Nxe5 {[%clk 0:56:29]} 16. Nxe5 {[%clk 0:53:06]}  Rxe5 {[%clk 0:56:46]} 17. Bxa8 {[%clk 0:53:31]}  Be6 {[%clk 0:54:58]} 18. Qc2 {[%clk 0:52:14]}  Qxa8 {[%clk 0:55:20]} 19. d4 {[%clk 0:51:32]}  Rh5 {[%clk 0:41:15]} 20. dxc5 {[%clk 0:49:41]}  Qf3 {[%clk 0:36:56]} 21. Qe2 {[%clk 0:41:24]}  Qxe2 {[%clk 0:36:52]} 22. Rxe2 {[%clk 0:41:52]}  Bg4 {[%clk 0:37:14]} 23. f3 {[%clk 0:41:57]}  Bxf3 {[%clk 0:37:37]} 24. Rd7 {[%clk 0:42:24]}  Bxe2 {[%clk 0:21:07]} 25. Rxc7 {[%clk 0:42:52]}  Bg4 {[%clk 0:19:14]} 26. b4 {[%clk 0:43:22]}  Re5 {[%clk 0:17:11]} 27. Kf2 {[%clk 0:42:39]}  Rf5+ {[%clk 0:14:34]} 28. Ke1 {[%clk 0:42:31]}  Bg7 {[%clk 0:14:15]} 29. Bd4 {[%clk 0:42:14]}  Bxd4 {[%clk 0:13:54]} 30. cxd4 {[%clk 0:42:43]}  Rd5 {[%clk 0:14:15]} 31. Rxa7 {[%clk 0:42:43]}  Rxd4 {[%clk 0:14:40]} 32. a3 {[%clk 0:43:24]}  Kf8 {[%clk 0:11:14]} 33. c6 {[%clk 0:41:38]}  Rc4 {[%clk 0:10:02]} 34. c7 {[%clk 0:41:34]}  Ke8 {[%clk 0:04:58]} 35. Rb7 {[%clk 0:41:31]}  Bd7 {[%clk 0:04:48]} 36. Kd2 {[%clk 0:42:00]}  Ke7 {[%clk 0:04:50]} 37. Kd3 {[%clk 0:41:55]}  Kd6 {[%clk 0:04:48]} 0-1


[Site "http://www.chessbomb.com"]

[Event "World Junior Chess Championship U20 2022"]
[White "Guz, Ari"]
[Black "Pennica, Andrea"]
[WhiteFideId "2825759"]
[BlackFideId "2816828"]
[WhiteElo "2305"]
[BlackElo "2037"]
[Result "1-0"]
[Round "02"]
[TimeControl "5400+30"]
[Date "2022.10.13"]
[WhiteClock "1:02:08"]
[BlackClock "0:49:55"]

1. d4 {[%clk 1:30:32]}  Nf6 {[%clk 1:28:57]} 2. Nc3 {[%clk 1:30:52]}  c5 {[%clk 1:28:57]} 3. d5 {[%clk 1:31:02]}  g6 {[%clk 1:29:37]} 4. e4 {[%clk 1:31:23]}  d6 {[%clk 1:30:02]} 5. Bb5+ {[%clk 1:30:32]}  Bd7 {[%clk 1:29:36]} 6. a4 {[%clk 1:30:53]}  Bg7 {[%clk 1:29:32]} 7. f4 {[%clk 1:27:49]}  Bxb5 {[%clk 1:29:28]} 8. axb5 {[%clk 1:28:06]}  Nbd7 {[%clk 1:29:09]} 9. Qe2 {[%clk 1:25:05]}  O-O {[%clk 1:29:23]} 10. Nf3 {[%clk 1:25:18]}  Ne8 {[%clk 1:24:44]} 11. O-O {[%clk 1:15:32]}  Nc7 {[%clk 1:24:21]} 12. e5 {[%clk 1:06:37]}  Nb6 {[%clk 1:24:24]} 13. Rd1 {[%clk 1:06:04]}  Qd7 {[%clk 1:12:04]} 14. Be3 {[%clk 1:03:21]}  f6 {[%clk 1:08:16]} 15. e6 {[%clk 1:01:51]}  Qe8 {[%clk 1:06:26]} 16. f5 {[%clk 1:01:40]}  gxf5 {[%clk 1:05:33]} 17. Nh4 {[%clk 1:01:54]}  f4 {[%clk 1:05:56]} 18. Nf5 {[%clk 1:02:00]}  Kh8 {[%clk 0:49:54]} 19. Bxf4 {[%clk 1:02:14]}  Rg8 {[%clk 0:49:55]} 20. Bxd6 {[%clk 1:02:08]} 1-0


[Site "http://www.chessbomb.com"]

[Event "World Junior Chess Championship U20 2022"]
[White "Candian, Lorenzo"]
[Black "Gaal, Zsoka"]
[WhiteFideId "2863664"]
[BlackFideId "777765"]
[WhiteElo "2022"]
[BlackElo "2298"]
[Result "0-1"]
[Round "02"]
[TimeControl "5400+30"]
[Date "2022.10.13"]
[WhiteClock "0:01:03"]
[BlackClock "0:16:39"]

1. c4 {[%clk 1:29:45]}  e6 {[%clk 1:24:31]} 2. g3 {[%clk 1:28:45]}  d5 {[%clk 1:24:49]} 3. d4 {[%clk 1:28:04]}  Nf6 {[%clk 1:25:10]} 4. Bg2 {[%clk 1:28:03]}  Bb4+ {[%clk 1:24:36]} 5. Bd2 {[%clk 1:27:25]}  a5 {[%clk 1:24:38]} 6. Nf3 {[%clk 1:25:55]}  O-O {[%clk 1:23:51]} 7. O-O {[%clk 1:25:21]}  dxc4 {[%clk 1:23:35]} 8. Bg5 {[%clk 1:19:23]}  Nc6 {[%clk 1:14:21]} 9. e4 {[%clk 1:04:12]}  Be7 {[%clk 1:12:16]} 10. Bxf6 {[%clk 1:02:03]}  Bxf6 {[%clk 1:12:18]} 11. e5 {[%clk 1:02:22]}  Be7 {[%clk 1:12:40]} 12. Nc3 {[%clk 1:01:56]}  Rb8 {[%clk 1:09:35]} 13. a4 {[%clk 0:36:13]}  Nb4 {[%clk 1:07:45]} 14. Qe2 {[%clk 0:33:25]}  b6 {[%clk 1:07:09]} 15. Rfd1 {[%clk 0:32:48]}  Ba6 {[%clk 1:06:38]} 16. h4 {[%clk 0:19:26]}  h6 {[%clk 1:03:30]} 17. d5 {[%clk 0:08:37]}  exd5 {[%clk 1:01:24]} 18. Nd4 {[%clk 0:08:34]}  c6 {[%clk 0:47:46]} 19. Bh3 {[%clk 0:03:02]}  Bc5 {[%clk 0:34:45]} 20. Nf5 {[%clk 0:02:13]}  Bc8 {[%clk 0:34:37]} 21. Ne4 {[%clk 0:01:07]}  Bxf5 {[%clk 0:34:01]} 22. Bxf5 {[%clk 0:01:26]}  Re8 {[%clk 0:31:35]} 23. Qh5 {[%clk 0:01:17]}  Rxe5 {[%clk 0:31:35]} 24. Bh7+ {[%clk 0:01:30]}  Kxh7 {[%clk 0:23:55]} 25. Qxe5 {[%clk 0:01:55]}  Nd3 {[%clk 0:21:27]} 26. Qf5+ {[%clk 0:02:00]}  Kg8 {[%clk 0:21:49]} 27. Nxc5 {[%clk 0:02:13]}  bxc5 {[%clk 0:22:08]} 28. Rab1 {[%clk 0:01:31]}  g6 {[%clk 0:20:52]} 29. Qg4 {[%clk 0:01:25]}  h5 {[%clk 0:20:02]} 30. Qe2 {[%clk 0:01:23]}  Rb3 {[%clk 0:19:48]} 31. Qd2 {[%clk 0:01:07]}  Qf6 {[%clk 0:18:53]} 32. Rf1 {[%clk 0:01:04]}  Rxb2 {[%clk 0:16:37]} 33. Rxb2 {[%clk 0:01:15]}  Qxb2 {[%clk 0:16:59]} 34. Qe3 {[%clk 0:01:13]}  Qd4 {[%clk 0:15:54]} 35. Qe8+ {[%clk 0:01:01]}  Kg7 {[%clk 0:16:18]} 36. Qxc6 {[%clk 0:01:03]}  c3 {[%clk 0:16:39]} 37. Qd6 {[%clk 0:01:03]} 0-1


[Site "http://www.chessbomb.com"]

[Event "World Junior Chess Championship U20 2022"]
[White "Wartiovaara, Oliver"]
[Black "Persico, Lorenzo"]
[WhiteFideId "513024"]
[BlackFideId "899240"]
[WhiteElo "2297"]
[BlackElo "2007"]
[Result "1-0"]
[Round "02"]
[TimeControl "5400+30"]
[Date "2022.10.13"]
[WhiteClock "0:44:25"]
[BlackClock "0:02:09"]

1. Nf3 {[%clk 1:30:56]}  d5 {[%clk 1:29:29]} 2. g3 {[%clk 1:31:21]}  c6 {[%clk 1:25:29]} 3. Bg2 {[%clk 1:31:46]}  g6 {[%clk 1:18:51]} 4. O-O {[%clk 1:31:47]}  Bg7 {[%clk 1:19:16]} 5. d4 {[%clk 1:32:06]}  Nf6 {[%clk 1:18:59]} 6. c4 {[%clk 1:31:59]}  O-O {[%clk 1:15:20]} 7. Ne5 {[%clk 1:32:23]}  Nbd7 {[%clk 1:11:30]} 8. Nc3 {[%clk 1:31:46]}  dxc4 {[%clk 1:07:31]} 9. Nxc4 {[%clk 1:32:00]}  Nb6 {[%clk 1:04:51]} 10. Ne5 {[%clk 1:26:51]}  Ng4 {[%clk 0:52:47]} 11. f4 {[%clk 1:24:56]}  f6 {[%clk 0:44:03]} 12. Qb3+ {[%clk 1:23:11]}  Kh8 {[%clk 0:42:38]} 13. Nf7+ {[%clk 1:19:34]}  Rxf7 {[%clk 0:42:48]} 14. Qxf7 {[%clk 1:19:56]}  e6 {[%clk 0:22:40]} 15. f5 {[%clk 1:20:11]}  gxf5 {[%clk 0:18:11]} 16. h3 {[%clk 1:15:11]}  Nh6 {[%clk 0:17:14]} 17. Qh5 {[%clk 1:13:41]}  Qxd4+ {[%clk 0:15:43]} 18. Kh2 {[%clk 1:13:03]}  Ng8 {[%clk 0:15:30]} 19. Rf4 {[%clk 1:09:03]}  Qc5 {[%clk 0:13:17]} 20. e4 {[%clk 1:06:39]}  Bd7 {[%clk 0:10:21]} 21. exf5 {[%clk 1:03:34]}  Be8 {[%clk 0:09:06]} 22. Qf3 {[%clk 1:02:44]}  Bh6 {[%clk 0:08:33]} 23. fxe6 {[%clk 1:02:46]}  Bxf4 {[%clk 0:08:24]} 24. Bxf4 {[%clk 1:03:10]}  Rd8 {[%clk 0:07:41]} 25. Re1 {[%clk 0:55:24]}  Qe7 {[%clk 0:06:45]} 26. g4 {[%clk 0:50:07]}  Bg6 {[%clk 0:05:47]} 27. g5 {[%clk 0:49:15]}  Rf8 {[%clk 0:04:22]} 28. Qg3 {[%clk 0:46:47]}  fxg5 {[%clk 0:03:49]} 29. Bd6 {[%clk 0:46:50]}  Qe8 {[%clk 0:01:52]} 30. Bxf8 {[%clk 0:44:07]}  Qxf8 {[%clk 0:02:09]} 31. e7 {[%clk 0:44:25]} 1-0


[Site "http://www.chessbomb.com"]

[Event "World Junior Chess Championship U20 2022"]
[White "Stolyarsky, Yegor"]
[Black "Zemach, Nadav"]
[WhiteFideId "2814595"]
[BlackFideId "2820927"]
[WhiteElo "1987"]
[BlackElo "2293"]
[Result "1/2-1/2"]
[Round "02"]
[TimeControl "5400+30"]
[Date "2022.10.13"]
[WhiteClock "0:07:11"]
[BlackClock "0:34:29"]

1. d4 {[%clk 0:00:00]}  d5 {[%clk 1:30:52]} 2. c4 {[%clk 1:27:54]}  e6 {[%clk 1:31:16]} 3. Nf3 {[%clk 1:28:13]}  a6 {[%clk 1:31:36]} 4. cxd5 {[%clk 1:27:37]}  exd5 {[%clk 1:31:36]} 5. Nc3 {[%clk 1:27:55]}  h6 {[%clk 1:27:43]} 6. Bf4 {[%clk 1:27:02]}  Nf6 {[%clk 1:27:56]} 7. e3 {[%clk 1:26:06]}  Bd6 {[%clk 1:25:51]} 8. Be5 {[%clk 1:26:02]}  Be7 {[%clk 1:23:10]} 9. Bd3 {[%clk 1:23:45]}  O-O {[%clk 1:22:55]} 10. O-O {[%clk 1:23:36]}  Nbd7 {[%clk 1:22:16]} 11. Bb1 {[%clk 1:16:56]}  Re8 {[%clk 1:16:58]} 12. Qc2 {[%clk 1:15:32]}  Nf8 {[%clk 1:15:52]} 13. Rc1 {[%clk 1:13:07]}  c6 {[%clk 1:14:28]} 14. a3 {[%clk 1:12:56]}  Ng6 {[%clk 1:11:32]} 15. b4 {[%clk 1:02:35]}  Bd6 {[%clk 1:10:30]} 16. Bg3 {[%clk 1:01:55]}  Qe7 {[%clk 1:09:20]} 17. Qb2 {[%clk 0:58:44]}  Bg4 {[%clk 1:02:21]} 18. Bxg6 {[%clk 0:52:01]}  fxg6 {[%clk 0:59:34]} 19. Bxd6 {[%clk 0:52:22]}  Qxd6 {[%clk 1:00:00]} 20. Ne5 {[%clk 0:52:40]}  Bf5 {[%clk 0:58:34]} 21. Na4 {[%clk 0:48:03]}  Re7 {[%clk 0:57:00]} 22. Nc5 {[%clk 0:47:32]}  Ng4 {[%clk 0:48:18]} 23. Nxg4 {[%clk 0:46:00]}  Bxg4 {[%clk 0:48:43]} 24. Nd3 {[%clk 0:45:57]}  Rf8 {[%clk 0:47:00]} 25. Ne5 {[%clk 0:45:59]}  Bd7 {[%clk 0:47:16]} 26. a4 {[%clk 0:42:24]}  Be8 {[%clk 0:46:01]} 27. Rc2 {[%clk 0:39:07]}  g5 {[%clk 0:45:41]} 28. Rac1 {[%clk 0:38:38]}  Re6 {[%clk 0:43:18]} 29. Rc5 {[%clk 0:32:50]}  Ref6 {[%clk 0:42:23]} 30. f3 {[%clk 0:27:34]}  Kh8 {[%clk 0:38:53]} 31. Qb3 {[%clk 0:27:20]}  Qe6 {[%clk 0:31:46]} 32. b5 {[%clk 0:22:13]}  axb5 {[%clk 0:27:27]} 33. axb5 {[%clk 0:22:15]}  b6 {[%clk 0:27:44]} 34. Rxc6 {[%clk 0:21:36]}  Bxc6 {[%clk 0:26:47]} 35. Rxc6 {[%clk 0:19:04]}  Qf5 {[%clk 0:26:50]} 36. Qxd5 {[%clk 0:11:46]}  Qb1+ {[%clk 0:27:07]} 37. Kf2 {[%clk 0:12:12]}  Qb2+ {[%clk 0:27:25]} 38. Kg3 {[%clk 0:12:24]}  Qd2 {[%clk 0:27:34]} 39. Qe4 {[%clk 0:12:10]}  Qe1+ {[%clk 0:12:54]} 40. Kh3 {[%clk 0:12:34]}  Kg8 {[%clk 0:07:28]} 41. Rxf6 {[%clk 0:11:42]}  Rxf6 {[%clk 0:37:20]} 42. Qa8+ {[%clk 0:10:39]}  Kh7 {[%clk 0:37:32]} 43. Qe4+ {[%clk 0:11:02]}  Kg8 {[%clk 0:37:31]} 44. Qa8+ {[%clk 0:06:16]}  Kh7 {[%clk 0:34:52]} 45. Qe4+ {[%clk 0:06:39]}  Kg8 {[%clk 0:33:42]} 46. Qd5+ {[%clk 0:06:43]}  Kh7 {[%clk 0:34:05]} 47. Qe4+ {[%clk 0:06:58]}  Kg8 {[%clk 0:34:29]} 48. Qd5+ {[%clk 0:07:11]} 1/2-1/2


[Site "http://www.chessbomb.com"]

[Event "World Junior Chess Championship U20 2022"]
[White "Momin, Fayzan"]
[Black "Flores Quillas, Diego Saul Rodri"]
[WhiteFideId "7805225"]
[BlackFideId "3822508"]
[WhiteElo "1974"]
[BlackElo "2291"]
[Result "0-1"]
[Round "02"]
[TimeControl "5400+30"]
[Date "2022.10.13"]
[WhiteClock "0:36:09"]
[BlackClock "0:43:18"]

1. d4 {[%clk 1:30:37]}  Nf6 {[%clk 1:27:33]} 2. c4 {[%clk 1:30:52]}  e6 {[%clk 1:27:59]} 3. g3 {[%clk 1:31:15]}  c5 {[%clk 1:27:55]} 4. d5 {[%clk 1:31:23]}  exd5 {[%clk 1:28:22]} 5. cxd5 {[%clk 1:31:45]}  d6 {[%clk 1:28:50]} 6. Nc3 {[%clk 1:32:03]}  g6 {[%clk 1:29:16]} 7. Bg2 {[%clk 1:32:24]}  Bg7 {[%clk 1:29:36]} 8. Nf3 {[%clk 1:32:47]}  O-O {[%clk 1:29:51]} 9. O-O {[%clk 1:33:09]}  a6 {[%clk 1:30:19]} 10. a4 {[%clk 1:33:32]}  Re8 {[%clk 1:30:45]} 11. Nd2 {[%clk 1:33:40]}  Nbd7 {[%clk 1:31:09]} 12. Nc4 {[%clk 1:33:23]}  Ne5 {[%clk 1:31:34]} 13. Nxe5 {[%clk 1:32:06]}  Rxe5 {[%clk 1:31:58]} 14. e4 {[%clk 1:32:18]}  Re8 {[%clk 1:32:06]} 15. Kh1 {[%clk 1:30:08]}  Rb8 {[%clk 1:25:07]} 16. a5 {[%clk 1:30:23]}  b5 {[%clk 1:24:04]} 17. axb6 {[%clk 1:30:49]}  Qxb6 {[%clk 1:24:28]} 18. f4 {[%clk 1:30:43]}  Nd7 {[%clk 1:23:18]} 19. Ra3 {[%clk 1:29:41]}  c4 {[%clk 1:16:20]} 20. Qe2 {[%clk 1:20:41]}  Nc5 {[%clk 1:15:49]} 21. Qxc4 {[%clk 1:18:42]}  a5 {[%clk 1:15:32]} 22. Qa2 {[%clk 1:04:28]}  Ba6 {[%clk 1:06:05]} 23. Rg1 {[%clk 1:00:57]}  Nd3 {[%clk 1:06:32]} 24. h3 {[%clk 1:00:53]}  Qf2 {[%clk 0:54:28]} 25. Nd1 {[%clk 0:53:25]}  Qxg3 {[%clk 0:54:45]} 26. Bf1 {[%clk 0:50:32]}  Qh4 {[%clk 0:46:01]} 27. Bd2 {[%clk 0:49:36]}  Bd4 {[%clk 0:44:09]} 28. Rg4 {[%clk 0:37:41]}  Nf2+ {[%clk 0:44:10]} 29. Nxf2 {[%clk 0:37:34]}  Qxf2 {[%clk 0:44:35]} 30. Bxa6 {[%clk 0:37:38]}  Qxd2 {[%clk 0:42:12]} 31. b3 {[%clk 0:37:29]}  Qc1+ {[%clk 0:42:23]} 32. Kh2 {[%clk 0:37:44]}  Rec8 {[%clk 0:42:16]} 33. Bxc8 {[%clk 0:37:52]}  Rxc8 {[%clk 0:42:45]} 34. Rg2 {[%clk 0:35:48]}  Qxf4+ {[%clk 0:43:10]} 35. Rg3 {[%clk 0:36:09]}  Rc3 {[%clk 0:43:18]} 0-1


[Site "http://www.chessbomb.com"]

[Event "World Junior Chess Championship U20 2022"]
[White "De Ieso, Lorenzo"]
[Black "Dauw, Sterre"]
[WhiteFideId "2894101"]
[BlackFideId "248886"]
[WhiteElo "1938"]
[BlackElo "2287"]
[Result "0-1"]
[Round "02"]
[TimeControl "5400+30"]
[Date "2022.10.13"]
[WhiteClock "0:02:39"]
[BlackClock "0:28:19"]

1. c4 {[%clk 1:30:56]}  g6 {[%clk 1:30:48]} 2. Nc3 {[%clk 1:31:20]}  Bg7 {[%clk 1:31:12]} 3. d4 {[%clk 1:31:43]}  Nf6 {[%clk 1:30:55]} 4. e4 {[%clk 1:32:05]}  d6 {[%clk 1:31:20]} 5. Be2 {[%clk 1:32:27]}  O-O {[%clk 1:31:43]} 6. Be3 {[%clk 1:32:51]}  e5 {[%clk 1:31:43]} 7. d5 {[%clk 1:33:11]}  Nbd7 {[%clk 1:27:12]} 8. g4 {[%clk 1:33:07]}  Nc5 {[%clk 1:25:39]} 9. f3 {[%clk 1:33:29]}  c6 {[%clk 1:25:46]} 10. h4 {[%clk 1:32:08]}  cxd5 {[%clk 1:25:32]} 11. cxd5 {[%clk 1:31:08]}  h5 {[%clk 1:22:52]} 12. g5 {[%clk 1:31:29]}  Nfd7 {[%clk 1:23:14]} 13. Qd2 {[%clk 1:27:56]}  Nb6 {[%clk 1:18:25]} 14. Nh3 {[%clk 1:23:00]}  Bxh3 {[%clk 1:18:47]} 15. Rxh3 {[%clk 1:23:22]}  Rc8 {[%clk 1:13:18]} 16. Rc1 {[%clk 1:20:35]}  f6 {[%clk 1:12:59]} 17. Rh2 {[%clk 1:16:31]}  fxg5 {[%clk 1:13:22]} 18. hxg5 {[%clk 1:14:51]}  Rf7 {[%clk 1:08:56]} 19. b4 {[%clk 1:11:33]}  Nca4 {[%clk 1:08:43]} 20. Nxa4 {[%clk 1:06:21]}  Nxa4 {[%clk 1:08:55]} 21. Bd1 {[%clk 0:57:43]}  Nb6 {[%clk 1:08:20]} 22. Qd3 {[%clk 0:45:52]}  Rxc1 {[%clk 1:07:16]} 23. Bxc1 {[%clk 0:46:19]}  Qc8 {[%clk 1:07:40]} 24. Rc2 {[%clk 0:45:09]}  Qh3 {[%clk 1:08:06]} 25. Qf1 {[%clk 0:44:42]}  Qd7 {[%clk 1:08:33]} 26. Be3 {[%clk 0:41:44]}  Bf8 {[%clk 1:05:31]} 27. Qd3 {[%clk 0:34:24]}  Be7 {[%clk 1:04:07]} 28. Rh2 {[%clk 0:29:04]}  Bd8 {[%clk 1:04:10]} 29. Bd2 {[%clk 0:27:21]}  Na4 {[%clk 0:59:12]} 30. Bxa4 {[%clk 0:26:25]}  Qxa4 {[%clk 0:59:36]} 31. f4 {[%clk 0:25:56]}  exf4 {[%clk 0:57:48]} 32. Bc3 {[%clk 0:23:21]}  Bb6 {[%clk 0:57:18]} 33. e5 {[%clk 0:23:13]}  Rf5 {[%clk 0:57:43]} 34. Rxh5 {[%clk 0:22:29]}  Qa3 {[%clk 0:46:45]} 35. Rh3 {[%clk 0:15:24]}  dxe5 {[%clk 0:32:01]} 36. d6 {[%clk 0:14:07]}  Qc1+ {[%clk 0:32:26]} 37. Ke2 {[%clk 0:14:24]}  f3+ {[%clk 0:32:47]} 38. Rxf3 {[%clk 0:14:24]}  Qxg5 {[%clk 0:33:11]} 39. Qd5+ {[%clk 0:13:07]}  Kf8 {[%clk 0:32:12]} 40. Rxf5+ {[%clk 0:13:11]}  Qxf5 {[%clk 0:30:40]} 41. Qxe5 {[%clk 0:12:12]}  Qxe5+ {[%clk 0:30:25]} 42. Bxe5 {[%clk 0:12:41]}  Kf7 {[%clk 0:30:46]} 43. Kf3 {[%clk 0:12:44]}  Ke6 {[%clk 0:31:10]} 44. Ke4 {[%clk 0:13:08]}  Bd8 {[%clk 0:31:02]} 45. a3 {[%clk 0:08:52]}  Bf6 {[%clk 0:27:13]} 46. Bf4 {[%clk 0:04:57]}  b5 {[%clk 0:26:12]} 47. Kd3 {[%clk 0:04:10]}  g5 {[%clk 0:25:56]} 48. Bg3 {[%clk 0:04:28]}  a6 {[%clk 0:24:39]} 49. Kc2 {[%clk 0:04:08]}  Bg7 {[%clk 0:24:50]} 50. Kb3 {[%clk 0:04:16]}  Bf8 {[%clk 0:25:14]} 51. a4 {[%clk 0:04:42]}  Bxd6 {[%clk 0:25:38]} 52. Bf2 {[%clk 0:04:56]}  Kd5 {[%clk 0:26:03]} 53. axb5 {[%clk 0:05:09]}  axb5 {[%clk 0:26:28]} 54. Kc3 {[%clk 0:05:32]}  Ke4 {[%clk 0:26:52]} 55. Bg1 {[%clk 0:05:31]}  g4 {[%clk 0:27:05]} 56. Kb3 {[%clk 0:02:32]}  Kd3 {[%clk 0:27:29]} 57. Bc5 {[%clk 0:02:26]}  Bf4 {[%clk 0:27:54]} 58. Bg1 {[%clk 0:02:39]}  g3 {[%clk 0:28:19]} 0-1


[Site "http://www.chessbomb.com"]

[Event "World Junior Chess Championship U20 2022"]
[White "Dimakis, Stavros"]
[Black "Bettalli, Francesco"]
[WhiteFideId "25879472"]
[BlackFideId "2816453"]
[WhiteElo "1832"]
[BlackElo "2267"]
[Result "1-0"]
[Round "02"]
[TimeControl "5400+30"]
[Date "2022.10.13"]
[WhiteClock "0:13:07"]
[BlackClock "0:26:21"]

1. e4 {[%clk 1:30:57]}  e5 {[%clk 1:30:41]} 2. Nf3 {[%clk 1:31:21]}  Nc6 {[%clk 1:31:03]} 3. Bb5 {[%clk 1:31:47]}  a6 {[%clk 1:31:22]} 4. Ba4 {[%clk 1:32:10]}  Nge7 {[%clk 1:31:45]} 5. Nc3 {[%clk 1:32:24]}  Ng6 {[%clk 1:31:45]} 6. h4 {[%clk 1:32:38]}  Bc5 {[%clk 1:14:27]} 7. h5 {[%clk 1:31:49]}  Nf8 {[%clk 1:05:22]} 8. h6 {[%clk 1:21:35]}  g6 {[%clk 1:01:21]} 9. Nd5 {[%clk 1:12:17]}  Ne6 {[%clk 1:00:38]} 10. c3 {[%clk 1:08:51]}  O-O {[%clk 0:56:36]} 11. d3 {[%clk 0:45:45]}  f5 {[%clk 0:53:07]} 12. exf5 {[%clk 0:42:39]}  Rxf5 {[%clk 0:53:10]} 13. Be3 {[%clk 0:42:08]}  Bf8 {[%clk 0:39:56]} 14. g4 {[%clk 0:31:02]}  Rf7 {[%clk 0:40:06]} 15. g5 {[%clk 0:29:00]}  d6 {[%clk 0:33:50]} 16. Nf6+ {[%clk 0:27:36]}  Kh8 {[%clk 0:33:27]} 17. d4 {[%clk 0:27:30]}  exd4 {[%clk 0:33:13]} 18. cxd4 {[%clk 0:24:20]}  d5 {[%clk 0:31:15]} 19. Bxc6 {[%clk 0:22:59]}  bxc6 {[%clk 0:31:38]} 20. Ne5 {[%clk 0:22:07]}  Bb4+ {[%clk 0:31:50]} 21. Kf1 {[%clk 0:22:26]}  Rf8 {[%clk 0:31:55]} 22. Qc2 {[%clk 0:21:43]}  Be7 {[%clk 0:30:36]} 23. Nxh7 {[%clk 0:13:49]}  Kxh7 {[%clk 0:29:49]} 24. Nxg6 {[%clk 0:14:00]}  Rf7 {[%clk 0:25:54]} 25. Ne5+ {[%clk 0:13:13]}  Kg8 {[%clk 0:26:21]} 26. h7+ {[%clk 0:13:07]} 1-0


[Site "http://www.chessbomb.com"]

[Event "World Junior Chess Championship U20 2022"]
[White "Ansat, Aldiyar"]
[Black "Karsten, Jan"]
[WhiteFideId "13715658"]
[BlackFideId "14350653"]
[WhiteElo "2262"]
[BlackElo "1985"]
[Result "1-0"]
[Round "02"]
[TimeControl "5400+30"]
[Date "2022.10.13"]
[WhiteClock "0:01:35"]
[BlackClock "0:01:08"]

1. e4 {[%clk 1:30:57]}  c5 {[%clk 1:30:56]} 2. Nf3 {[%clk 1:31:11]}  d6 {[%clk 1:31:22]} 3. d4 {[%clk 1:31:37]}  cxd4 {[%clk 1:31:49]} 4. Nxd4 {[%clk 1:32:03]}  Nf6 {[%clk 1:32:13]} 5. Nc3 {[%clk 1:32:29]}  a6 {[%clk 1:32:40]} 6. Bg5 {[%clk 1:32:32]}  e6 {[%clk 1:32:45]} 7. f4 {[%clk 1:32:58]}  Be7 {[%clk 1:33:00]} 8. Qf3 {[%clk 1:33:14]}  Qc7 {[%clk 1:32:47]} 9. O-O-O {[%clk 1:33:27]}  Nbd7 {[%clk 1:33:05]} 10. g4 {[%clk 1:33:50]}  h6 {[%clk 1:33:08]} 11. Bxf6 {[%clk 1:34:04]}  Bxf6 {[%clk 1:33:23]} 12. h4 {[%clk 1:34:31]}  Nb6 {[%clk 1:33:17]} 13. g5 {[%clk 1:34:53]}  Bxd4 {[%clk 1:33:30]} 14. Rxd4 {[%clk 1:35:19]}  Qc5 {[%clk 1:33:51]} 15. Rd2 {[%clk 1:35:45]}  Bd7 {[%clk 1:31:17]} 16. Be2 {[%clk 1:36:10]}  Na4 {[%clk 1:28:52]} 17. Rd3 {[%clk 1:36:35]}  Rc8 {[%clk 1:28:27]} 18. Bd1 {[%clk 1:37:00]}  Nxc3 {[%clk 1:27:40]} 19. Rxc3 {[%clk 1:37:26]}  Qa5 {[%clk 1:27:23]} 20. Ra3 {[%clk 1:37:51]}  Qc5 {[%clk 1:25:29]} 21. gxh6 {[%clk 1:38:16]}  gxh6 {[%clk 1:25:18]} 22. Rc3 {[%clk 1:38:42]}  Qa5 {[%clk 1:25:24]} 23. Rxc8+ {[%clk 1:39:05]}  Bxc8 {[%clk 1:25:46]} 24. e5 {[%clk 1:39:34]}  dxe5 {[%clk 1:20:41]} 25. Rf1 {[%clk 1:39:46]}  Rf8 {[%clk 1:18:59]} 26. a3 {[%clk 1:14:04]}  Qc7 {[%clk 1:11:37]} 27. Qh5 {[%clk 1:04:51]}  exf4 {[%clk 1:04:51]} 28. Qxh6 {[%clk 1:05:04]}  Qe5 {[%clk 0:54:41]} 29. h5 {[%clk 0:49:59]}  Rh8 {[%clk 0:54:41]} 30. Qxf4 {[%clk 0:50:20]}  Qxf4+ {[%clk 0:42:52]} 31. Rxf4 {[%clk 0:50:48]}  f5 {[%clk 0:31:44]} 32. Rc4 {[%clk 0:27:50]}  Kd7 {[%clk 0:29:36]} 33. Kd2 {[%clk 0:13:21]}  e5 {[%clk 0:26:19]} 34. Rc3 {[%clk 0:12:35]}  b6 {[%clk 0:16:50]} 35. Rg3 {[%clk 0:10:25]}  Kd6 {[%clk 0:12:11]} 36. Rg6+ {[%clk 0:10:02]}  Be6 {[%clk 0:12:23]} 37. c3 {[%clk 0:10:10]}  Ke7 {[%clk 0:10:46]} 38. h6 {[%clk 0:04:38]}  Rd8+ {[%clk 0:04:19]} 39. Ke1 {[%clk 0:05:04]}  Rd3 {[%clk 0:03:17]} 40. Bh5 {[%clk 0:02:28]}  Rd8 {[%clk 0:00:43]} 41. h7 {[%clk 0:01:19]}  Rh8 {[%clk 0:22:40]} 42. Rh6 {[%clk 0:27:58]}  b5 {[%clk 0:17:38]} 43. Kf2 {[%clk 0:18:40]}  Bd7 {[%clk 0:12:45]} 44. Bd1 {[%clk 0:06:59]}  Be6 {[%clk 0:07:20]} 45. a4 {[%clk 0:06:31]}  Kf7 {[%clk 0:04:31]} 46. Bh5+ {[%clk 0:05:08]}  Ke7 {[%clk 0:04:52]} 47. a5 {[%clk 0:03:12]}  Bc8 {[%clk 0:04:20]} 48. b4 {[%clk 0:02:30]}  Kf8 {[%clk 0:03:42]} 49. Rc6 {[%clk 0:01:41]}  Kg7 {[%clk 0:02:54]} 50. Rc7+ {[%clk 0:00:43]}  Kh6 {[%clk 0:02:37]} 51. Bd1 {[%clk 0:00:52]}  f4 {[%clk 0:01:01]} 52. Bc2 {[%clk 0:01:15]}  Kg5 {[%clk 0:01:08]} 53. Rg7+ {[%clk 0:01:35]} 1-0


[Site "http://www.chessbomb.com"]